[Event "FIDE Grand Swiss 2023"]
[Site "Villa Marina, Douglas, Isle of Man, Isle Of Man"]
[Date "2023.11.02"]
[Round "8.55"]
[White "Wu, Li"]
[Black "Greenfeld, Alon"]
[Result "1-0"]
[TimeControl "40/90 + 30 + 30s/move"]
[WhiteFideId "411086"]
[BlackFideId "2800039"]
[WhiteElo "2303"]
[BlackElo "2455"]

1. c4 {[%clk 01:40:57]} c5 {[%clk 01:34:58]} {[%emt 00:06:02]} 2. Nf3 {[%clk
01:41:15]} {[%emt 00:00:13]} Nf6 {[%clk 01:32:07]} {[%emt 00:03:21]} 3. g3
{[%clk 01:41:24]} {[%emt 00:00:21]} b6 {[%clk 01:25:54]} {[%emt 00:06:42]} 4.
Bg2 {[%clk 01:40:50]} {[%emt 00:01:04]} Bb7 {[%clk 01:26:19]} {[%emt 00:00:05]}
5. O-O {[%clk 01:41:08]} {[%emt 00:00:13]} g6 {[%clk 01:21:57]} {[%emt
00:04:50]} 6. b3 {[%clk 01:31:58]} {[%emt 00:09:41]} Bg7 {[%clk 01:21:35]}
{[%emt 00:00:52]} 7. Bb2 {[%clk 01:32:23]} {[%emt 00:00:06]} O-O {[%clk
01:19:55]} {[%emt 00:02:09]} 8. Nc3 {[%clk 01:31:02]} {[%emt 00:01:51]} e6
{[%clk 00:59:55]} {[%emt 00:20:30]} 9. d4 {[%clk 01:28:57]} {[%emt 00:02:35]}
d5 {[%clk 01:00:01]} {[%emt 00:00:23]} 10. dxc5 {[%clk 01:21:09]} {[%emt
00:08:20]} dxc4 {[%clk 00:45:26]} {[%emt 00:15:04]} 11. Nb5 {[%clk 01:17:37]}
{[%emt 00:04:02]} Nbd7 {[%clk 00:33:58]} {[%emt 00:11:57]} 12. Nd6 {[%clk
01:17:28]} {[%emt 00:00:40]} Bc6 {[%clk 00:33:30]} {[%emt 00:00:58]} 13. cxb6
{[%clk 01:09:04]} {[%emt 00:08:55]} axb6 {[%clk 00:33:32]} {[%emt 00:00:28]} 14.
Nxc4 {[%clk 01:09:20]} {[%emt 00:00:14]} b5 {[%clk 00:32:58]} {[%emt 00:01:04]}
15. Nce5 {[%clk 01:07:52]} {[%emt 00:01:58]} Nxe5 {[%clk 00:33:07]} {[%emt
00:00:20]} 16. Bxe5 {[%clk 01:08:13]} {[%emt 00:00:09]} Ra6 {[%clk 00:30:49]}
{[%emt 00:02:48]} 17. Qd4 {[%clk 01:03:46]} {[%emt 00:04:57]} Qxd4 {[%clk
00:30:34]} {[%emt 00:00:45]} 18. Nxd4 {[%clk 01:04:13]} {[%emt 00:00:03]} Bxg2
{[%clk 00:30:56]} {[%emt 00:00:08]} 19. Kxg2 {[%clk 01:04:40]} {[%emt
00:00:03]} b4 {[%clk 00:29:56]} {[%emt 00:01:30]} 20. Rfc1 {[%clk 00:49:35]}
{[%emt 00:15:35]} Nd5 {[%clk 00:28:56]} {[%emt 00:01:30]} 21. Bxg7 {[%clk
00:50:01]} {[%emt 00:00:04]} Kxg7 {[%clk 00:29:21]} {[%emt 00:00:04]} 22. Rc4
{[%clk 00:49:41]} {[%emt 00:00:50]} Rb8 {[%clk 00:22:16]} {[%emt 00:07:35]} 23.
Nc2 {[%clk 00:45:40]} {[%emt 00:04:32]} Rab6 {[%clk 00:19:55]} {[%emt
00:02:51]} 24. e4 {[%clk 00:45:43]} {[%emt 00:00:26]} Nf6 {[%clk 00:18:14]}
{[%emt 00:02:10]} 25. Rd1 {[%clk 00:43:44]} {[%emt 00:02:31]} g5 {[%clk
00:16:50]} {[%emt 00:01:54]} 26. f4 {[%clk 00:42:09]} {[%emt 00:02:04]} gxf4
{[%clk 00:13:15]} {[%emt 00:04:05]} 27. gxf4 {[%clk 00:42:24]} {[%emt
00:00:15]} e5 {[%clk 00:13:39]} {[%emt 00:00:05]} 28. Kf3 {[%clk 00:40:44]}
{[%emt 00:02:11]} R8b7 {[%clk 00:10:22]} {[%emt 00:03:48]} 29. Ne3 {[%clk
00:35:16]} {[%emt 00:05:57]} 1-0

[Event "FIDE Grand Swiss 2023"]
[Site "Villa Marina, Douglas, Isle of Man, Isle Of Man"]
[Date "2023.11.02"]
[Round "8.56"]
[White "Amar, Elham"]
[Black "Fier, Alexandr"]
[Result "1/2-1/2"]
[TimeControl "40/90 + 30 + 30s/move"]
[WhiteFideId "1533533"]
[BlackFideId "2107139"]
[WhiteElo "2568"]
[BlackElo "2574"]

1. e4 {[%clk 01:40:57]} {[%emt 00:00:02]} c5 {[%clk 01:40:56]} {[%emt
00:00:05]} 2. Nf3 {[%clk 01:41:21]} {[%emt 00:00:06]} d6 {[%clk 01:41:23]}
{[%emt 00:00:02]} 3. d4 {[%clk 01:41:45]} {[%emt 00:00:06]} cxd4 {[%clk
01:41:51]} {[%emt 00:00:03]} 4. Nxd4 {[%clk 01:42:08]} {[%emt 00:00:07]} Nf6
{[%clk 01:42:18]} {[%emt 00:00:03]} 5. Nc3 {[%clk 01:42:29]} {[%emt 00:00:08]}
a6 {[%clk 01:42:45]} {[%emt 00:00:03]} 6. Bd3 {[%clk 01:42:49]} {[%emt
00:00:10]} e5 {[%clk 01:43:11]} {[%emt 00:00:05]} 7. Nde2 {[%clk 01:43:11]}
{[%emt 00:00:06]} Be7 {[%clk 01:43:39]} {[%emt 00:00:03]} 8. O-O {[%clk
01:43:28]} {[%emt 00:00:14]} O-O {[%clk 01:44:05]} {[%emt 00:00:03]} 9. h3
{[%clk 01:43:50]} {[%emt 00:00:07]} Be6 {[%clk 01:44:03]} {[%emt 00:00:33]} 10.
f4 {[%clk 01:44:13]} {[%emt 00:00:07]} exf4 {[%clk 01:44:31]} {[%emt 00:00:03]}
11. Nxf4 {[%clk 01:43:49]} {[%emt 00:00:53]} Nc6 {[%clk 01:44:56]} {[%emt
00:00:05]} 12. Be3 {[%clk 01:43:05]} {[%emt 00:01:14]} Ne5 {[%clk 01:45:15]}
{[%emt 00:00:12]} 13. Bd4 {[%clk 01:40:19]} {[%emt 00:03:15]} Nfd7 {[%clk
01:44:08]} {[%emt 00:01:38]} 14. Ncd5 {[%clk 01:33:59]} {[%emt 00:06:49]} Bg5
{[%clk 01:42:14]} {[%emt 00:02:25]} 15. a4 {[%clk 01:34:05]} {[%emt 00:00:24]}
a5 {[%clk 01:26:03]} {[%emt 00:16:42]} 16. Bb5 {[%clk 01:22:01]} {[%emt
00:12:33]} Nc6 {[%clk 01:18:02]} {[%emt 00:08:32]} 17. Bc3 {[%clk 01:14:57]}
{[%emt 00:07:33]} Nc5 {[%clk 01:17:37]} {[%emt 00:00:56]} 18. Qf3 {[%clk
01:14:32]} {[%emt 00:00:54]} Na7 {[%clk 01:09:59]} {[%emt 00:08:09]} 19. Bc4
{[%clk 01:01:29]} {[%emt 00:13:32]} Nc6 {[%clk 01:10:16]} {[%emt 00:00:14]} 20.
Bb5 {[%clk 00:57:47]} {[%emt 00:04:12]} Na7 {[%clk 01:10:29]} {[%emt 00:00:16]}
21. Rad1 {[%clk 00:57:18]} {[%emt 00:00:59]} Nxb5 {[%clk 01:10:44]} {[%emt
00:00:16]} 22. axb5 {[%clk 00:57:47]} {[%emt 00:00:01]} Nd7 {[%clk 01:06:36]}
{[%emt 00:04:37]} 23. Qg3 {[%clk 00:53:25]} {[%emt 00:04:53]} Nc5 {[%clk
01:02:15]} {[%emt 00:04:51]} 24. Rfe1 {[%clk 00:46:38]} {[%emt 00:07:15]} f6
{[%clk 00:56:18]} {[%emt 00:06:28]} 25. Nxe6 {[%clk 00:39:41]} {[%emt
00:07:27]} Nxe6 {[%clk 00:56:43]} {[%emt 00:00:05]} 26. Qg4 {[%clk 00:39:33]}
{[%emt 00:00:39]} Nc5 {[%clk 00:54:07]} {[%emt 00:03:06]} 27. h4 {[%clk
00:39:23]} {[%emt 00:00:39]} Bh6 {[%clk 00:54:33]} {[%emt 00:00:04]} 28. Bd4
{[%clk 00:39:01]} {[%emt 00:00:53]} Kh8 {[%clk 00:52:43]} {[%emt 00:02:20]} 29.
Bxc5 {[%clk 00:28:22]} {[%emt 00:11:08]} dxc5 {[%clk 00:53:09]} {[%emt
00:00:04]} 30. Qg3 {[%clk 00:21:17]} {[%emt 00:07:35]} Rc8 {[%clk 00:51:33]}
{[%emt 00:02:06]} 31. c4 {[%clk 00:20:48]} {[%emt 00:01:00]} Qe8 {[%clk
00:52:00]} {[%emt 00:00:04]} 32. e5 {[%clk 00:20:05]} {[%emt 00:01:12]} fxe5
{[%clk 00:51:53]} {[%emt 00:00:36]} 33. Qxe5 {[%clk 00:18:54]} {[%emt
00:01:41]} Qxe5 {[%clk 00:47:34]} {[%emt 00:04:50]} 34. Rxe5 {[%emt 00:00:06]}
Rce8 {[%clk 00:48:02]} 35. Rde1 {[%clk 00:17:27]} {[%emt 00:02:22]} Rxe5 {[%clk
00:48:14]} {[%emt 00:00:18]} 36. Rxe5 {[%clk 00:17:56]} {[%emt 00:00:02]} Bc1
{[%clk 00:48:39]} {[%emt 00:00:05]} 37. Re2 {[%clk 00:14:59]} {[%emt 00:03:27]}
h5 {[%clk 00:48:34]} {[%emt 00:00:35]} 38. b3 {[%clk 00:14:03]} {[%emt
00:01:26]} Rf7 {[%clk 00:48:17]} {[%emt 00:00:46]} 39. Rc2 {[%clk 00:11:25]}
{[%emt 00:03:08]} Bf4 {[%clk 00:48:20]} {[%emt 00:00:27]} 40. Rf2 {[%clk
00:10:07]} {[%emt 00:01:48]} Bh2+ {[%clk 00:48:45]} {[%emt 00:00:05]} 41. Kf1
{[%clk 00:10:36]} {[%emt 00:00:01]} Kg8 {[%clk 00:48:54]} {[%emt 00:00:21]} 42.
Rxf7 {[%clk 00:09:58]} {[%emt 00:01:08]} Kxf7 {[%clk 00:49:20]} {[%emt
00:00:04]} 43. Kf2 {[%clk 00:10:27]} {[%emt 00:00:02]} Be5 {[%clk 00:48:46]}
{[%emt 00:01:03]} 44. Kf3 {[%clk 00:10:33]} {[%emt 00:00:25]} g6 {[%clk
00:49:12]} {[%emt 00:00:03]} 45. g4 {[%clk 00:10:30]} {[%emt 00:00:33]} hxg4+
{[%clk 00:45:12]} {[%emt 00:04:31]} 46. Kxg4 {[%clk 00:10:56]} {[%emt
00:00:03]} Bb2 {[%clk 00:45:27]} {[%emt 00:00:16]} 47. Kf4 {[%clk 00:10:38]}
{[%emt 00:00:47]} Bf6 {[%clk 00:41:27]} {[%emt 00:04:30]} 48. Kg4 {[%clk
00:11:04]} {[%emt 00:00:04]} Bb2 {[%clk 00:41:27]} {[%emt 00:00:30]} 49. Nf4
{[%clk 00:11:04]} {[%emt 00:00:30]} Be5 {[%clk 00:40:13]} {[%emt 00:01:44]} 50.
Nd3 {[%clk 00:11:07]} {[%emt 00:00:27]} Bd6 {[%clk 00:40:39]} {[%emt 00:00:04]}
51. Ne1 {[%clk 00:10:38]} {[%emt 00:01:00]} Ke6 {[%clk 00:40:38]} {[%emt
00:00:31]} 52. Nf3 {[%clk 00:10:58]} {[%emt 00:00:10]} Be7 {[%clk 00:41:03]}
{[%emt 00:00:05]} 53. Kf4 {[%clk 00:11:18]} {[%emt 00:00:10]} b6 {[%clk
00:40:44]} {[%emt 00:00:49]} 54. Kg4 {[%clk 00:08:43]} {[%emt 00:03:05]} Bf6
{[%clk 00:39:54]} {[%emt 00:01:20]} 55. Kf4 {[%clk 00:06:44]} {[%emt 00:02:28]}
Be7 {[%clk 00:40:13]} {[%emt 00:00:11]} 56. Kg4 {[%clk 00:05:41]} {[%emt
00:01:32]} Bf6 {[%clk 00:40:29]} {[%emt 00:00:15]} 57. Kf4 {[%clk 00:06:00]}
{[%emt 00:00:10]} 1/2-1/2

[Event "FIDE Grand Swiss 2023"]
[Site "Villa Marina, Douglas, Isle of Man, Isle Of Man"]
[Date "2023.11.02"]
[Round "8.57"]
[White "Krasenkow, Michal"]
[Black "Kolbus, Dietmar"]
[Result "1-0"]
[TimeControl "40/90 + 30 + 30s/move"]
[WhiteFideId "1113100"]
[BlackFideId "4610628"]
[WhiteElo "2531"]
[BlackElo "2225"]

1. d4 {[%clk 01:40:56]} {[%emt 00:00:04]} d5 {[%clk 01:39:42]} {[%emt
00:01:19]} 2. c4 {[%clk 01:41:19]} {[%emt 00:00:06]} c6 {[%clk 01:40:07]}
{[%emt 00:00:05]} 3. Nc3 {[%clk 01:41:41]} {[%emt 00:00:09]} Nf6 {[%clk
01:40:28]} {[%emt 00:00:09]} 4. e3 {[%clk 01:42:06]} {[%emt 00:00:04]} g6
{[%clk 01:35:46]} {[%emt 00:05:13]} 5. Nf3 {[%clk 01:41:56]} {[%emt 00:00:40]}
Bg7 {[%clk 01:36:09]} {[%emt 00:00:06]} 6. Be2 {[%clk 01:38:01]} {[%emt
00:04:25]} O-O {[%clk 01:36:32]} {[%emt 00:00:08]} 7. O-O {[%clk 01:38:27]}
{[%emt 00:00:03]} b6 {[%clk 01:25:26]} {[%emt 00:11:36]} 8. a4 {[%clk
01:35:25]} {[%emt 00:03:32]} Ba6 {[%clk 01:05:49]} {[%emt 00:20:07]} 9. b3
{[%clk 01:30:22]} {[%emt 00:05:34]} Ne4 {[%clk 01:04:19]} {[%emt 00:01:59]} 10.
Bb2 {[%clk 01:28:48]} {[%emt 00:02:05]} Nxc3 {[%clk 01:03:48]} {[%emt
00:01:01]} 11. Bxc3 {[%clk 01:29:16]} {[%emt 00:00:02]} Nd7 {[%clk 01:03:21]}
{[%emt 00:00:56]} 12. a5 {[%clk 01:22:00]} {[%emt 00:07:46]} dxc4 {[%clk
00:57:58]} {[%emt 00:05:53]} 13. bxc4 {[%clk 01:22:07]} {[%emt 00:00:24]} c5
{[%clk 00:57:41]} {[%emt 00:00:47]} 14. Qb3 {[%clk 01:14:04]} {[%emt 00:08:33]}
e6 {[%clk 00:57:04]} {[%emt 00:01:06]} 15. Rfd1 {[%clk 01:13:04]} {[%emt
00:01:30]} Qc7 {[%clk 00:57:21]} {[%emt 00:00:14]} 16. d5 {[%clk 01:12:22]}
{[%emt 00:01:12]} Bxc3 {[%clk 00:53:11]} {[%emt 00:04:39]} 17. Qxc3 {[%clk
01:12:33]} {[%emt 00:00:19]} exd5 {[%clk 00:49:00]} {[%emt 00:04:41]} 18. Rxd5
{[%clk 01:12:20]} {[%emt 00:00:44]} Bb7 {[%clk 00:43:49]} {[%emt 00:05:41]} 19.
Rd2 {[%clk 01:11:55]} {[%emt 00:00:55]} Rfe8 {[%clk 00:39:03]} {[%emt
00:05:15]} 20. h4 {[%clk 01:03:02]} {[%emt 00:09:24]} h5 {[%clk 00:34:11]}
{[%emt 00:05:22]} 21. Rad1 {[%clk 01:02:04]} {[%emt 00:01:27]} Re7 {[%clk
00:26:44]} {[%emt 00:07:57]} 22. Rd6 {[%clk 00:58:10]} {[%emt 00:04:23]} Rae8
{[%clk 00:23:32]} {[%emt 00:03:41]} 23. axb6 {[%clk 00:58:21]} {[%emt
00:00:22]} axb6 {[%clk 00:23:45]} {[%emt 00:00:17]} 24. Ng5 {[%clk 00:58:36]}
{[%emt 00:00:14]} Bc6 {[%clk 00:12:06]} {[%emt 00:12:09]} 25. Bf3 {[%clk
00:50:44]} {[%emt 00:08:22]} Bxf3 {[%clk 00:11:48]} {[%emt 00:00:49]} 26. gxf3
{[%clk 00:51:04]} {[%emt 00:00:09]} Nf8 {[%clk 00:10:51]} {[%emt 00:01:27]} 27.
Qf6 {[%clk 00:46:44]} {[%emt 00:04:50]} Nh7 {[%clk 00:09:47]} {[%emt 00:01:34]}
28. Nxh7 {[%clk 00:45:21]} {[%emt 00:01:54]} Kxh7 {[%clk 00:09:49]} {[%emt
00:00:27]} 29. Rxb6 {[%clk 00:44:31]} {[%emt 00:01:21]} Re6 {[%clk 00:04:33]}
{[%emt 00:05:46]} 30. Rxe6 {[%clk 00:44:40]} {[%emt 00:00:21]} Rxe6 {[%clk
00:04:57]} {[%emt 00:00:05]} 31. Qd8 {[%clk 00:44:45]} {[%emt 00:00:24]} Qb7
{[%clk 00:03:58]} {[%emt 00:01:27]} 32. Kg2 {[%clk 00:43:50]} {[%emt 00:01:27]}
Kg7 {[%clk 00:03:21]} {[%emt 00:01:07]} 33. Rd7 {[%clk 00:43:12]} {[%emt
00:01:09]} Qc6 {[%clk 00:01:27]} {[%emt 00:02:25]} 34. Qc7 {[%clk 00:39:15]}
{[%emt 00:04:27]} Qxc7 {[%clk 00:01:22]} {[%emt 00:00:35]} 35. Rxc7 {[%clk
00:39:39]} {[%emt 00:00:05]} Re5 {[%clk 00:01:39]} {[%emt 00:00:13]} 36. f4
{[%clk 00:39:59]} {[%emt 00:00:10]} Rf5 {[%clk 00:02:00]} {[%emt 00:00:08]} 37.
Rc6 {[%clk 00:31:03]} {[%emt 00:09:27]} Rf6 {[%clk 00:02:14]} {[%emt 00:00:17]}
38. Rxf6 {[%clk 00:30:14]} {[%emt 00:01:19]} Kxf6 {[%clk 00:02:38]} {[%emt
00:00:05]} 39. Kf3 {[%clk 00:30:38]} {[%emt 00:00:06]} Kf5 {[%clk 00:02:50]}
{[%emt 00:00:19]} 40. e4+ {[%clk 00:31:00]} {[%emt 00:00:07]} Ke6 {[%clk
00:02:57]} {[%emt 00:00:23]} 41. f5+ {[%clk 00:30:48]} {[%emt 00:00:43]} gxf5
{[%clk 00:02:57]} {[%emt 00:00:30]} 42. Kf4 {[%clk 00:31:13]} {[%emt 00:00:04]}
fxe4 {[%clk 00:03:06]} {[%emt 00:00:21]} 43. Kxe4 {[%clk 00:31:39]} {[%emt
00:00:05]} f6 {[%clk 00:01:54]} {[%emt 00:01:42]} 44. Kf4 {[%clk 00:31:57]}
{[%emt 00:00:11]} f5 {[%clk 00:43:11]} {[%emt 00:09:14]} 45. Kg5 {[%clk
01:21:58]} {[%emt 00:00:28]} Ke5 {[%clk 00:43:22]} {[%emt 00:00:19]} 46. Kxh5
{[%clk 01:22:24]} {[%emt 00:00:05]} Ke4 {[%clk 00:37:36]} {[%emt 00:06:15]} 47.
Kg5 {[%clk 01:22:45]} {[%emt 00:00:09]} Kd5 {[%emt 00:01:01]} 48. Kf4+ {[%clk
01:22:45]} 1-0